Cogmind - Beta 12 @@@ ROGUE MODE // 2023.12.05 @ 22:03:06 Player: Analote Result: Destroyed by G-34 Mercenary with Small Laser Performance ------------- Evolutions (0) 0 Regions Visited (2) 400 Robots Destroyed (11) 55 Value Destroyed (214) 214 Prototype IDs (0) 0 Alien Tech Used (0) 0 Bonus (0) 0 TOTAL SCORE: 669 Bonus ------- None Cogmind --------- Core Integrity 0/250 Matter 285/300 Energy 250/250 System Corruption 14% Temperature Cool (6) Movement Core (200) Ox3 Location -10/Mines Parts ------- > --- POWER (1) -------- Ion Engine > --- PROPULSION (2) --- (None) > --- UTILITY (2) ------ Small Storage Unit Targeting Computer > --- WEAPON (2) ------- Light Assault Rifle > --- INVENTORY (8) ---- Aluminum Leg Heat Sink Experimental Sensor Array Peak State ------------ > --- POWER ------------ Ion Engine > --- PROPULSION ------- Light Treads Light Treads > --- UTILITY ---------- Small Storage Unit Targeting Computer > --- WEAPON ----------- Small Laser Small Laser > --- INVENTORY -------- Medium Laser [Rating: 7] Favorites ----------- Power Ion Engine Engine Ion Engine Propulsion Light Treads Treads Light Treads Flight Unit Flight Unit Utility Small Storage Unit Storage Small Storage Unit Processor Targeting Computer Weapon Small Laser Energy Gun Small Laser Ballistic Gun Light Assault Rifle Ballistic Cannon Light Cannon Build | -11 -10 -10 ------- Run | Jun Mat Min Slots Evolved . | . . . Power . | . . . Propulsion . | . . . Utility . | . . . Weapon . | . . . Parts Attached 14 | 6 2 6 Power 2 | 1 . 1 Engine 2 | 1 . 1 Core . | . . . Reactor . | . . . Propulsion 3 | 2 . 1 Treads 2 | 2 . . Leg . | . . . Wheel . | . . . Hover . | . . . Flight 1 | . . 1 Utility 2 | 1 1 . Device . | . . . Storage 1 | 1 . . Processor 1 | . 1 . Hackware . | . . . Protection . | . . . Artifact . | . . . Weapon 7 | 2 1 4 Energy Gun 5 | 2 . 3 Energy Cannon . | . . . Ballistic Gun 1 | . . 1 Ballistic Cannon 1 | . 1 . Launcher . | . . . Special Weapon . | . . . Impact Weapon . | . . . Slashing Weapon . | . . . Piercing Weapon . | . . . Special Melee Weapon . | . . . Unidentified Prototypes . | . . . Parts Lost 8 | . . 8 Power 1 | . . 1 Propulsion 3 | . . 3 Utility . | . . . Weapon 4 | . . 4 Highest Loss Streak 4 | . . 4 To Critical Strikes . | . . . Average Slot Usage (%) 84 | . 98 79 Engine 11 | . 14 10 Treads 17 | . 28 14 Storage 14 | . 14 14 Processor 13 | . 12 14 Energy Gun 17 | . 23 15 Ballistic Gun 1 | . . 1 Ballistic Cannon 7 | . 4 8 Naked Turns . | . . . Heaviest Build 15 | 12 14 15 Greatest Support 40 | 40 40 40 Greatest Overweight (x) 4 | . . 4 Average Overweight (x) . | . . 1 Largest Inventory Capacity 8 | 8 8 8 Average Capacity 7 | 7 8 8 Most Carried 5 | 4 3 5 Average Carried 2 | . 1 3 Final Capacity 8 | 8 8 8 Final Carried 3 | 1 3 3 Class Distribution -------------------- 100% | Mutant Dominant Class ---------------- Mutant | -10/Materials Mutant | -10/Mines Resources | -11 -10 -10 ----------- Run | Jun Mat Min Matter Collected 423 | 259 21 143 Remotely . | . . . Salvage Created 388 | . 144 244 Parts 19 | . 10 9 Haulers Intercepted . | . . . Recyclers Shooed . | . . . Parts Field Recycled . | . . . Retrieved Matter . | . . . Parts Self-Destructed . | . . . Prevented . | . . . Kills | -11 -10 -10 ------- Run | Jun Mat Min Combat Hostiles Destroyed 21 | . 5 16 Guns 14 | . 5 9 Cannons 7 | . . 7 Classes Destroyed 4 | . 2 2 Builder 1 | . . 1 Swarmer 6 | . 3 3 Grunt 4 | . 2 2 Assembled 11 | . . 11 Best Kill Streak 6 | . 3 6 Combat Bots Only 6 | . 3 6 Max Kills in Single Turn 2 | . 1 2 Gunslinging . | . . . Exploded . | . . . Melee . | . . . Uniques/NPCs Destroyed . | . . . Combat | -11 -10 -10 -------- Run | Jun Mat Min Damage Taken 1019 | . 262 757 Core 251 | . 66 185 Absorbed by Shields . | . . . Core Remaining (%) 100 | 100 . . Volleys Fired 62 | . 14 48 Largest 2 | . 2 2 Hottest 90 | . 80 90 Shots Fired 117 | . 28 89 Gun 88 | . 28 60 Cannon 29 | . . 29 Launcher . | . . . Special . | . . . Kinetic 36 | . . 36 Thermal 81 | . 28 53 Explosive . | . . . Electromagnetic . | . . . Robot Hit Streak 12 | . 9 12 Robot Miss Streak 3 | . 3 3 Penetration Max . | . . . Secondary Targets 1 | . 1 . Max Gunslinging Chain 1 | . 1 . Shots Hit Robots 79 | . 18 61 Core Hits 40 | . 8 32 Critical Kills . | . . . Critical Parts Destroyed . | . . . Critical Strikes 4 | . . 4 Burn 3 | . . 3 Blast 1 | . . 1 Melee Attacks . | . . . Impact . | . . . Slashing . | . . . Piercing . | . . . Sneak Attacks . | . . . Combat Hostiles . | . . . Follow-up Attacks . | . . . Damage Inflicted 1014 | . 211 803 Guns 649 | . 211 438 Cannons 365 | . . 365 Explosions . | . . . Melee . | . . . Ramming . | . . . Kinetic 421 | . . 421 Thermal 593 | . 211 382 Explosive . | . . . Electromagnetic . | . . . Impact . | . . . Slashing . | . . . Piercing . | . . . Highest Corruption 14 | . . 14 Average Corruption 13 | . . 13 Corruption Purged . | . . . Corruption Blocked . | . . . Effects 3 | . . 3 Heat Flow Errors 1 | . . 1 Energy Discharges 1 | . . 1 Data Loss (minor) 1 | . . 1 Overload Shots . | . . . Overflow Damage 21 | . . 21 Projectiles 21 | . . 21 Explosions . | . . . Melee . | . . . Knockbacks 4 | . . 4 Impact . | . . . Kinetic 4 | . . 4 Secondary . | . . . Self-Inflicted Damage . | . . . Shots . | . . . Rammed . | . . . Targets Rammed . | . . . Kicked . | . . . Crushed . | . . . Highest Temperature 300 | . 300 220 Average Temperature 83 | . 133 66 Received Heat Transfer 242 | . 102 140 Effects 3 | . 3 . Interference 3 | . 3 . Siege Activations . | . . . Robots Corrupted . | . . . Combat Hostiles . | . . . Parts Fried . | . . . Impact Corruptions . | . . . Robots Melted . | . . . Combat Hostiles . | . . . Parts Melted . | . . . Heat Transferred 1655 | . 475 1180 Parts Sabotaged . | . . . Parts Stolen . | . . . Parts Stripped . | . . . Power Chain Reactions . | . . . Missiles Intercepted . | . . . Alert | -11 -10 -10 ------- Run | Jun Mat Min Peak Influence 188 | . 120 188 Initial 46 | . . 46 Average 78 | . 60 93 Maximum Alert Level . | . . . Low Security (%) 100 | 100 100 100 Level 1 . | . . . Level 2 . | . . . Level 3 . | . . . Level 4 . | . . . Level 5 . | . . . High Security . | . . . Max Security . | . . . Squads Dispatched 1 | . 1 . Investigation . | . . . Extermination . | . . . Reinforcement 1 | . 1 . Assault . | . . . Garrison . | . . . Intercept . | . . . Searches Triggered . | . . . Construction Impeded . | . . . Haulers Reinforced . | . . . Active Scanning Responses . | . . . Cargo Convoy Interrupts . | . . . Stealth | -11 -10 -10 --------- Run | Jun Mat Min Distress Signals 2 | . 1 1 Communications Jammed . | . . . Distress Signals . | . . . Times Spotted 38 | . 10 28 Peak Tracking Total 16 | . 6 16 Tactical Retreats 4 | . . 4 Traps | -11 -10 -10 ------- Run | Jun Mat Min Traps Triggered . | . . . Indirectly . | . . . Trap Hack Attempts . | . . . Triggered . | . . . Disarmed . | . . . Reprogrammed . | . . . Reused . | . . . Traps Extracted . | . . . Installed . | . . . Triggered . | . . . Machines | -11 -10 -10 ---------- Run | Jun Mat Min Machines Disabled . | . . . Max in Single Turn . | . . . Machines Repaired . | . . . Machines Sabotaged . | . . . Overloaded Fab Kills . | . . . Hacking | -11 -10 -10 --------- Run | Jun Mat Min Machines Accessed 1 | . . 1 Terminals 1 | . . 1 Fabricators . | . . . Repair Stations . | . . . Recycling Units . | . . . Scanalyzers . | . . . Garrison Access . | . . . Total Hacks 3 | . . 3 Successful 3 | . . 3 Failed . | . . . Catastrophic . | . . . Database Lockouts . | . . . Manual . | . . . Terminals 3 | . . 3 Fabricators . | . . . Repair Stations . | . . . Recycling Units . | . . . Scanalyzers . | . . . Garrison Access . | . . . Terminal Hacks 3 | . . 3 Record 3 | . . 3 Fabricator Hacks . | . . . Repair Station Hacks . | . . . Recycling Unit Hacks . | . . . Scanalyzer . | . . . Garrison Access Hacks . | . . . Unauthorized Hacks . | . . . Terminals . | . . . Fabricators . | . . . Repair Stations . | . . . Recycling Units . | . . . Scanalyzers . | . . . Garrison Access . | . . . Data Cores Recovered . | . . . Used . | . . . Hacking Detections 1 | . . 1 Full Trace Events . | . . . Feedback Events . | . . . Feedback Blocked . | . . . Robot Schematics Acquired . | . . . Robots Built . | . . . Authchips . | . . . Time . | . . . Total Robot Build Rating . | . . . Part Schematics Acquired . | . . . Parts Built . | . . . Authchips . | . . . Time . | . . . Total Part Build Rating . | . . . Parts Repaired . | . . . Time . | . . . Parts Recycled . | . . . Recycled Matter . | . . . Retrieved Matter . | . . . Retrieved Components . | . . . Parts Scanalyzed . | . . . Part Schematics Acquired . | . . . Parts Damaged . | . . . Bothacking | -11 -10 -10 ------------ Run | Jun Mat Min Used RIF Installer . | . . . Robots Hacked . | . . . Non-combat . | . . . Combat . | . . . Robot Hacks Applied . | . . . Relay Couplers Released . | . . . Fabnet Peak Effective % . | . . . Robots Rewired . | . . . Allies Hacked . | . . . Hacks Repelled . | . . . Allies | -11 -10 -10 -------- Run | Jun Mat Min Total Allies . | . . . Largest Group . | . . . Highest-Rated Group . | . . . Highest-Rated Ally . | . . . Total Orders . | . . . Ally Attacks . | . . . Total Damage . | . . . Kills . | . . . Allies Corrupted . | . . . Allies Melted . | . . . Intel | -11 -10 -10 ------- Run | Jun Mat Min Robot Analysis Total . | . . . Derelict Logs Recovered 1 | . . 1 Drone Launches . | . . . Drone Recoveries . | . . . Exploration | -11 -10 -10 ------------- Run | Jun Mat Min Turns Passed 773 | 64 174 535 Spaces Moved 353 | 38 79 236 Core 122 | 8 . 114 Treads 231 | 30 79 122 Legs . | . . . Wheels . | . . . Hover . | . . . Flight . | . . . Fastest Speed 50 | 50 160 100 Average Speed 159 | 136 160 163 Slowest Speed 250 | 160 160 250 Overloaded Moves . | . . . Propulsion Burnouts . | . . . Robots Hopped . | . . . Cave-ins Triggered . | . . . Exploration Rate (%) 21 | 3 18 44 Regions Visited 2 Branch Regions 1 Pre-discovered Areas . | . . . Known Exits Taken . | . . . Unknown Exits Taken 2 | 1 1 . Scrap Searched 2 | . . 2 Spaces Dug . | . . . Terrain Destroyed . | . . . Melee . | . . . Projectile . | . . . AOE . | . . . Terrain Rammed . | . . . Walls Destroyed . | . . . Machines Disabled . | . . . Actions | -11 -10 -10 --------- Run | Jun Mat Min Total 445 | 50 99 296 Wait 1 | . . 1 Move 351 | 37 78 236 Hop . | . . . Pick Up 16 | 7 4 5 Fast Attach . | . . . Attach 12 | 6 1 5 Detach . | . . . Swap 2 | . 1 1 Drop 1 | . 1 . Fire 62 | . 14 48 Melee . | . . . Ram . | . . . Kick . | . . . Crush . | . . . Escape Stasis . | . . . Rewire . | . . . Trap . | . . . Miscellaneous . | . . . Route ------- -11/Junkyard -10/Materials -10/Mines History --------- Turn | Location | Event 25 | -11/Junkyard | Discovered new exit (range 15) 65 | -11/Junkyard | Entered Materials 220 | -10/Materials | Discovered new exit (range 12) 239 | -10/Materials | Entered Mines 255 | -10/Mines | Met a Derelict bent on vengeance 304 | -10/Mines | Build established: Mutant 372 | -10/Mines | Learned Materials interactive machine intel 464 | -10/Mines | Assembled infested the area 469 | -10/Mines | Assisted by a Guerilla fighting off Assembled 477 | -10/Mines | Core integrity fell below 50% 561 | -10/Mines | Core integrity fell below 20% 661 | -10/Mines | Found a damaged Exp. Sensor Array with a note attached 664 | -10/Mines | Found Prototype Device 700 | -10/Mines | System corruption reached 10% 730 | -10/Mines | Lost 4 parts (1n3w) 774 | -10/Mines | Destroyed by G-34 Mercenary with Small Laser Last Messages --------------- 00696_ Med. Laser destroyed. 00696_ Flight Unit destroyed. 00696_ System corrupted by crushing effect (+3). 00696_ System corrupted by crushing effect (+1). 00696_ System corrupted by crushing effect (+5). 00699_ Sml. Laser destroyed. 00699_ System corrupted by crushing effect (+5). 00699_ Knocked back. 00699_ R-06 Scavenger destroyed. 00699_ Acquired 5 matter. 00701_ Acquired Lgt. Assault Rifle. 00708_ Acquired 10 matter. 00711_ Acquired 1 matter. 00712_ as-27983 destroyed. 00713_ System corrupted: Energy discharge (-33). 00713_ Acquired 1 matter. 00733_ System corrupted: Component data lost. 00733_ Acquired Ion Engine. 00754_ System corrupted: Heat flow error (+152). 00754_ G-47 Trooper: "SECOND INTRUDER APPROACHING. ELIMINATE." Map ----- +----------------------------------------------------+ | ??????????????????????????????????????? | | ??????????????????????????????????????? | | ??????????????????????????????????????? | | ??????????????????????????????????????? | | ??????????????????????????????????????? | | ??????????????????????????????????????? | | ??????????????????????????????????????? | | ??????????????????????????????????????? | | ??????????????????????????????????????? | | ??????????????????????????????????????? | | ?????????????????????########?????????? | | ?????????????????????# #?????????? | | ?????????????????????# #?????????? | | ?????????????????????#! #?????????? | | ?????????????????????#%% #?????????? | | ?????????????????????#%######?????????? | | ?????????????????????#%#??????????????? | | ???????????##????????#%#??????????????? | | ?????????# # ??????# #????#####?????? | | ?????????# !%* *##### ###### !##????? | | ????# %*%%[ *%!%= #????? | | ????????# * =###!####g#### #????? | | ????????## ????# #??# #?## #????? | | ?????????####?????## #??# #?# ##????? | | ?????????????????## ##?# ##! !##?????? | | ?????????????????# #?#@## #??????? | | ????????????????## ### ##??????? | | ????????????????# ## #####???????? | | ???????????????## #???????????? | | ???????????????# #####???????????? | | ???????????????# ##???????????????? | | ???????????????# #????????????????? | | ???????????????## #????????????????? | | ????????????????### #????????????????? | | ??????????????????# #????????????????? | | ??????????????????# ###??????????????? | | ??????????????????# #??????????????? | | ??????????????????#### #??????????????? | | ?????????????????????# #??????????????? | | ?????????? ?????????# #??????????????? | | ?????????? ?????????# ##?????????????? | | ?????????? ?????????# ##????????????? | | ?????????? ?????????#% #????????????? | | ???#?????? ????????## #????????????? | | ??# ?????? ???????## #????????????? | | ??# ?????? ??????## ##????????????? | | ??? ?????? #?????# #?????????????? | | ??? ##???? #????## #?????????????? | | ??? #????# ????# ##?????????????? | | ???# #????# #????# ##?????????????? | +----------------------------------------------------+ Best States ------------- Heat Dissipation 25 Energy Generation 10 Energy Capacity 250 Matter Stores 300 Matter Capacity 300 Sight Range 16 Terrain Scan Density 10 Evasion (%) 40 Targeting Accuracy 5 Recoil Reduction 2 Item Schematics ----------------- None Robot Schematics ------------------ None Fabricated ------------ Nothing Alien Tech Used ----------------- None Achievements -------------- None Challenges ------------ None Game ------ Seed ResetReflectiveGuard Manual? 0 Play Time 00:05:39 Cumulative 75.1 hours Start 2023.11.25 @ 16:04:57 End 2023.12.05 @ 22:03:06 Sessions 3 Manual Loads 0 Difficulty Rogue Special Mode None Game No. 102 Rogue 3 Adventurer 1 Explorer 98 Win Type - Total 1 Types 0/0/1/0/0/0/0/0/0 Lore% 54 Gallery% 60 Achievement% 60 Wizard Run 0 Options --------- ASCII 0 Keyboard 0 Movement Mouse Keybinds 0 Fullscreen 2 Font 18/SmallcapsGlow Map View 76x50 Tactical HUD 1 Map Filters NONE Filters NONE Steam 1 RUN: ffa32b6c-13dd-4b2a-94fc-19a12094f8a9